bitfinex/quotes_BTCUSD_20240611
["timestamp","ask_amount","ask_price","bid_price","bid_amount"]
[1718146224613,0.00086,67362.0,67361.0,2.5088534]
[1718146224949,0.00086,67362.0,67361.0,2.78710469]
[1718146227559,0.00086,67362.0,67361.0,2.70910469]
[1718146227769,0.00086,67362.0,67361.0,2.57564775]
[1718146227949,0.00086,67362.0,67361.0,2.57564652]
[1718146228161,0.00086,67362.0,67361.0,2.70910905]
[1718146228525,0.00086,67362.0,67361.0,2.57564652]
[1718146229745,0.00086,67362.0,67361.0,2.65404652]
[1718146233219,0.00086,67362.0,67361.0,2.81406822]
[1718146237666,0.00086,67362.0,67361.0,2.81327653]
[1718146238346,0.17967993,67362.0,67361.0,1.02708643]
[1718146238802,0.17967993,67362.0,67361.0,0.04005016]
[1718146238803,0.20736,67362.0,67361.0,0.04005016]
[1718146239227,0.20736,67362.0,67361.0,0.03205016]
[1718146239643,0.20736,67362.0,67361.0,0.04005016]
[1718146239847,0.20736,67362.0,67361.0,0.03305016]
[1718146240056,0.20736,67362.0,67361.0,0.04005016]
[1718146240474,0.20736,67362.0,67361.0,0.06305016]
[1718146240693,0.20736,67362.0,67361.0,0.05605016]
[1718146240904,0.20736,67362.0,67361.0,0.04905016]
[1718146241118,0.21336,67362.0,67361.0,0.05005016]
[1718146244591,0.381811,67362.0,67361.0,0.02705016]
[1718146244796,0.50613093,67362.0,67361.0,0.02705016]
[1718146245008,0.52613093,67362.0,67361.0,0.02705016]
[1718146245225,0.52613093,67362.0,67361.0,0.002]
[1718146246109,0.54402699,67362.0,67361.0,0.002]
[1718146246811,0.52402699,67362.0,67361.0,0.002]
[1718146247043,0.54402699,67362.0,67361.0,0.002]
[1718146254473,0.52402699,67362.0,67361.0,0.002]
[1718146254637,0.54402699,67362.0,67361.0,0.002]
[1718146255316,0.52402699,67362.0,67361.0,0.002]
[1718146255740,0.58118486,67362.0,67361.0,0.002]
[1718146256200,0.60118486,67362.0,67361.0,0.002]
[1718146256614,0.58118486,67362.0,67361.0,0.002]
[1718146256812,0.60118486,67362.0,67361.0,0.002]
[1718146257654,0.54402699,67362.0,67361.0,0.002]
[1718146261606,0.52402699,67362.0,67361.0,0.002]
[1718146262029,0.12475606,67362.0,67361.0,0.002]
[1718146262284,0.02475606,67362.0,67361.0,0.002]
[1718146262504,0.09675606,67362.0,67361.0,0.002]
[1718146262703,0.09675606,67362.0,67361.0,0.02169716]
[1718146262852,0.09675606,67362.0,67361.0,0.04469716]
[1718146268721,0.02475606,67362.0,67361.0,0.04469716]
[1718146268979,0.09675606,67362.0,67361.0,0.04469716]
[1718146272559,0.19675606,67362.0,67361.0,0.04469716]
[1718146272770,0.19675606,67362.0,67361.0,0.025]
[1718146272976,0.19675606,67362.0,67361.0,0.002]
[1718146273182,0.19675606,67362.0,67361.0,0.025]
[1718146274451,0.19675606,67362.0,67361.0,0.002]
[1718146274673,0.19675606,67362.0,67361.0,0.025]
[1718146275120,0.19675606,67362.0,67361.0,0.002]
[1718146275914,0.34520706,67362.0,67361.0,0.002]
[1718146276559,0.36520706,67362.0,67361.0,0.002]
[1718146278093,0.36520706,67362.0,67361.0,0.002946]
[1718146278319,0.36520706,67362.0,67361.0,0.025946]
[1718146279637,0.34520706,67362.0,67361.0,0.025946]
[1718146284478,0.34520706,67362.0,67361.0,0.04562217]
[1718146291579,0.34420706,67362.0,67361.0,0.04562217]
[1718146298786,0.40578797,67362.0,67361.0,0.04562217]
[1718146300645,0.42578797,67362.0,67361.0,0.04562217]
[1718146301021,0.46144956,67362.0,67361.0,0.04562217]
[1718146301691,0.42578797,67362.0,67361.0,0.04562217]
[1718146301866,0.40578797,67362.0,67361.0,0.04562217]
[1718146309679,0.40578797,67362.0,67361.0,0.12222217]
[1718146309906,0.40664797,67362.0,67361.0,0.12222217]
[1718146317005,0.40664785,67362.0,67361.0,0.12222217]
[1718146320101,0.12461606,67362.0,67361.0,0.19572217]
[1718146320321,0.02461606,67362.0,67361.0,0.27522217]
[1718146320745,0.02461606,67362.0,67361.0,0.34198364]
[1718146321809,0.02461606,67362.0,67361.0,0.34202628]
[1718146322033,0.02461606,67362.0,67361.0,0.27522217]
[1718146323720,0.02461606,67362.0,67361.0,0.6168831]
[1718146323929,0.02461606,67362.0,67361.0,0.90496989]
[1718146324150,0.02461606,67362.0,67361.0,1.07143889]
[1718146324417,0.02461606,67362.0,67361.0,1.07133963]
[1718146324641,0.02461606,67362.0,67361.0,0.96009871]
[1718146324890,0.02461606,67362.0,67361.0,1.11629871]
[1718146325122,0.02161606,67362.0,67361.0,1.11429871]
[1718146325354,0.02161606,67362.0,67361.0,1.12429871]
[1718146325355,0.01875606,67362.0,67361.0,1.12429871]
[1718146325593,0.01875606,67362.0,67361.0,1.13129871]
[1718146326508,0.01875606,67362.0,67361.0,1.12429871]
[1718146326736,0.01875606,67362.0,67361.0,1.11429871]
[1718146326969,0.00086,67362.0,67361.0,1.64470616]
[1718146327205,0.00086,67362.0,67361.0,1.65370616]
[1718146327421,0.00086,67362.0,67361.0,1.64470616]
[1718146327652,0.00086,67362.0,67361.0,1.65470616]
[1718146328371,0.00086,67362.0,67361.0,1.66070616]
[1718146328989,0.00086,67362.0,67361.0,1.67672686]
[1718146329415,0.00086,67362.0,67361.0,1.78776332]
[1718146329636,0.00086,67362.0,67361.0,1.78176332]
[1718146330269,0.00086,67362.0,67361.0,1.67072686]
[1718146330473,0.00086,67362.0,67361.0,1.66072686]
[1718146330701,0.00086,67362.0,67361.0,1.66772686]
[1718146330910,0.00086,67362.0,67361.0,1.65672686]
[1718146331113,0.00086,67362.0,67361.0,1.67672686]
[1718146331547,0.00086,67362.0,67361.0,1.64972686]
[1718146331786,0.00086,67362.0,67361.0,1.66972686]
[1718146332390,0.00086,67362.0,67361.0,1.66936308]
[1718146332598,0.00086,67362.0,67361.0,1.75815384]
[1718146332805,0.00086,67362.0,67361.0,1.76415384]
[1718146333212,0.00086,67362.0,67361.0,1.74415384]
[1718146334325,0.00086,67362.0,67361.0,1.76415384]
[1718146334803,0.00086,67362.0,67361.0,1.74415384]
[1718146336322,0.00086,67362.0,67361.0,1.65536308]
[1718146337278,0.00086,67362.0,67361.0,1.67536308]
[1718146338366,0.00086,67362.0,67361.0,1.72736308]
[1718146338583,0.00086,67362.0,67361.0,1.72779947]
[1718146339397,0.00086,67362.0,67361.0,1.7943547]
[1718146340073,0.00086,67362.0,67361.0,1.72779947]
[1718146342926,0.00086,67362.0,67361.0,1.77216673]
[1718146343316,0.00086,67362.0,67361.0,1.66667345]
[1718146343525,0.00086,67362.0,67361.0,1.77233476]
[1718146343691,0.00086,67362.0,67361.0,1.7279675]
[1718146343901,0.00086,67362.0,67361.0,1.7723348]
[1718146344523,0.00086,67362.0,67361.0,1.77233522]
[1718146344779,0.00086,67362.0,67361.0,1.77229602]
[1718146345402,0.00086,67362.0,67361.0,1.17002963]
[1718146345824,0.00086,67362.0,67361.0,1.12566191]
[1718146346232,0.00086,67362.0,67361.0,1.0200006]
[1718146346491,0.00086,67362.0,67361.0,1.12545213]
[1718146350693,0.00086,67362.0,67361.0,1.12543307]
[1718146351320,0.00086,67362.0,67361.0,1.16980998]
[1718146351550,0.00086,67362.0,67361.0,1.16981385]
[1718146352120,0.00086,67362.0,67361.0,1.12543307]
[1718146352329,0.00086,67362.0,67361.0,1.14543307]
[1718146352934,0.00086,67362.0,67361.0,1.2120063]
[1718146353159,0.00086,67362.0,67361.0,1.14543307]
[1718146354634,0.00086,67362.0,67361.0,0.98923307]
[1718146354848,0.00086,67362.0,67361.0,0.88378154]
[1718146355049,0.00086,67362.0,67361.0,0.98924349]
[1718146357114,0.00086,67362.0,67361.0,1.07801857]
[1718146357330,0.00086,67362.0,67361.0,0.98924349]
[1718146358007,0.00086,67362.0,67361.0,1.07801857]
[1718146358824,0.00086,67362.0,67361.0,1.07804922]
[1718146359043,0.00086,67362.0,67361.0,0.98927414]
[1718146359259,0.00086,67362.0,67361.0,1.67577107]
[1718146359733,0.00086,67362.0,67361.0,1.78673992]
[1718146361007,0.00086,67362.0,67361.0,1.7871364]
[1718146362284,0.00086,67362.0,67361.0,1.67609522]
[1718146364425,0.00086,67362.0,67361.0,1.6761972]
[1718146366510,0.00086,67362.0,67361.0,1.62905876]
[1718146366715,0.00086,67362.0,67361.0,1.67620254]
[1718146367541,0.00086,67362.0,67361.0,1.6762609]
[1718146368657,0.00086,67362.0,67361.0,1.67627454]
[1718146369768,0.00086,67362.0,67361.0,1.80952396]
[1718146370373,0.00086,67362.0,67361.0,1.67627454]
[1718146370580,0.00086,67362.0,67361.0,1.57032313]
[1718146370778,0.00086,67362.0,67361.0,1.67639148]
[1718146372062,0.00086,67362.0,67361.0,1.80989426]
[1718146373108,0.00086,67362.0,67361.0,1.80989977]
[1718146374608,0.00086,67362.0,67361.0,1.67639739]
[1718146374823,0.00086,67362.0,67361.0,1.80990195]
[1718146375030,0.00086,67362.0,67361.0,1.67639739]
[1718146375865,0.00086,67362.0,67361.0,1.67640162]
[1718146381265,0.00086,67362.0,67361.0,1.67631808]
[1718146381701,0.00086,67362.0,67361.0,1.36848443]
[1718146381944,0.00086,67362.0,67361.0,1.67630185]
[1718146382387,0.00086,67362.0,67361.0,1.80980474]
[1718146385456,0.00086,67362.0,67361.0,1.80980311]
[1718146385658,0.00086,67362.0,67361.0,1.78980311]
[1718146386272,0.00086,67362.0,67361.0,1.78980605]
[1718146386701,0.00086,67362.0,67361.0,1.48198569]
[1718146386887,0.00086,67362.0,67361.0,1.78980579]
[1718146387313,0.00086,67362.0,67361.0,1.78982399]
[1718146387740,0.00086,67362.0,67361.0,1.65632201]
[1718146388476,0.00086,67362.0,67361.0,1.65632418]
[1718146388695,0.00086,67362.0,67361.0,1.72832418]
[1718146389367,0.00086,67362.0,67361.0,1.72873209]
[1718146391270,0.00086,67362.0,67361.0,1.72873231]
[1718146393238,0.00086,67362.0,67361.0,1.62233224]
[1718146393468,0.00086,67362.0,67361.0,1.86225009]
[1718146396432,0.00086,67362.0,67361.0,1.11942316]
[1718146396880,0.00086,67362.0,67361.0,0.98592118]
[1718146397295,0.00086,67362.0,67361.0,1.11942316]
[1718146397510,0.00086,67362.0,67361.0,0.98592118]
[1718146398568,0.00086,67362.0,67361.0,1.11953536]
[1718146399983,0.00086,67362.0,67361.0,0.9859724]
[1718146402556,0.00086,67362.0,67361.0,0.98593048]
[1718146403671,0.00086,67362.0,67361.0,0.74066048]
[1718146404154,0.00086,67362.0,67361.0,0.85193089]
[1718146406708,0.00086,67362.0,67361.0,0.74066223]
[1718146407518,0.00086,67362.0,67361.0,0.82964965]
[1718146407930,0.00086,67362.0,67361.0,0.8300029]
[1718146408795,0.03536,67362.0,67361.0,0.8300029]
[1718146409126,0.03536,67362.0,67361.0,0.74090552]
[1718146410183,0.03536,67362.0,67361.0,0.74063974]
[1718146410314,0.03536,67362.0,67361.0,0.80736585]
[1718146410513,0.03536,67362.0,67361.0,0.74063974]
[1718146411191,0.03536,67362.0,67361.0,0.80740603]
[1718146411608,0.03536,67362.0,67361.0,1.03970603]
[1718146411609,0.00086,67362.0,67361.0,1.03970603]
[1718146411817,0.00086,67363.0,67362.0,0.148591]
[1718146412027,0.00086,67363.0,67362.0,0.72199376]
[1718146412242,0.00086,67363.0,67362.0,0.65226767]
[1718146413317,0.00086,67363.0,67362.0,0.66026767]
[1718146413775,0.00086,67363.0,67362.0,0.75726767]
[1718146414436,0.00086,67363.0,67362.0,0.75723394]
[1718146414894,0.00086,67363.0,67362.0,0.74923392]
[1718146415099,0.00086,67363.0,67362.0,0.74423395]
[1718146415328,0.00086,67363.0,67362.0,0.43640522]
[1718146415540,0.00086,67363.0,67362.0,0.72723253]
[1718146416631,0.00086,67363.0,67362.0,0.75023253]
[1718146417053,0.00086,67363.0,67362.0,0.75223253]
[1718146417476,0.00086,67363.0,67362.0,0.74623253]
[1718146417910,0.00086,67363.0,67362.0,0.75123253]
[1718146418118,0.00086,67363.0,67362.0,0.75123086]
[1718146419518,0.00086,67363.0,67362.0,1.34865379]
[1718146419726,0.00086,67363.0,67362.0,1.58095379]
[1718146421156,0.00086,67363.0,67362.0,1.58094323]
[1718146421569,0.00086,67363.0,67362.0,1.58195463]
[1718146422195,0.00086,67363.0,67362.0,1.28505163]
[1718146422577,0.00086,67363.0,67362.0,1.17762421]
[1718146422776,0.00086,67363.0,67362.0,1.28508233]
[1718146424876,0.00086,67363.0,67362.0,1.28519739]
[1718146429107,0.00086,67363.0,67362.0,1.50761894]
[1718146429341,0.00086,67363.0,67362.0,1.57418804]
[1718146430191,0.00086,67363.0,67362.0,1.56918804]
[1718146430401,0.00086,67363.0,67362.0,1.58118804]
[1718146430620,0.00086,67363.0,67362.0,1.57918804]
[1718146430822,0.00086,67363.0,67362.0,1.56718804]
[1718146431037,0.00086,67363.0,67362.0,1.97209104]
[1718146431257,0.00086,67363.0,67362.0,2.49406234]
[1718146431474,0.00086,67363.0,67362.0,2.45945491]
[1718146431686,0.00086,67363.0,67362.0,2.53541495]
[1718146431906,0.00086,67363.0,67362.0,2.54341495]
[1718146432079,0.00086,67363.0,67362.0,2.74034937]
[1718146432294,0.00086,67363.0,67362.0,2.73234937]
[1718146432516,0.00086,67363.0,67362.0,2.53541495]
[1718146433105,0.00086,67363.0,67362.0,2.5203636]
[1718146433312,0.00086,67363.0,67362.0,2.52031984]
[1718146433490,0.00086,67363.0,67362.0,2.53431984]
[1718146433690,0.00086,67363.0,67362.0,2.53231984]
[1718146433907,0.00086,67363.0,67362.0,2.54553384]
[1718146434298,0.00086,67363.0,67362.0,2.50818123]
[1718146434501,0.00086,67363.0,67362.0,2.28818123]
[1718146434708,0.00086,67363.0,67362.0,2.13618123]
[1718146434919,0.00086,67363.0,67362.0,2.32089149]
[1718146435554,0.00086,67363.0,67362.0,2.06541978]
[1718146435766,0.00086,67363.0,67362.0,1.81565839]
[1718146435971,0.00086,67363.0,67362.0,1.51875539]
[1718146437836,0.00086,67363.0,67362.0,1.51970139]
[1718146438451,0.00086,67363.0,67362.0,1.52000924]
[1718146440412,0.00086,67363.0,67362.0,1.52001302]
[1718146441291,0.00086,67363.0,67362.0,1.52001251]
[1718146441897,0.00086,67363.0,67362.0,1.52001189]
[1718146442105,0.00086,67363.0,67362.0,1.72001189]
[1718146442963,0.00086,67363.0,67362.0,1.5996951]
[1718146443171,0.00086,67363.0,67362.0,1.87571445]
[1718146443383,0.00086,67363.0,67362.0,1.72280576]
[1718146444206,0.00086,67363.0,67362.0,1.72280998]
[1718146444664,0.00086,67363.0,67362.0,2.01971298]
[1718146444987,0.00086,67363.0,67362.0,2.432425]
[1718146446145,0.00086,67363.0,67362.0,2.729328]
[1718146446640,0.00086,67363.0,67362.0,2.76667587]
[1718146446858,0.01821671,67380.0,67377.0,0.02]
[1718146447075,0.0345,67381.0,67377.0,0.02]
[1718146447076,0.0345,67381.0,67379.0,0.22057296]
[1718146447293,0.0345,67381.0,67380.0,0.12311066]
[1718146447507,0.0345,67381.0,67380.0,0.43087884]
[1718146447738,0.0345,67381.0,67380.0,0.51029583]
[1718146449014,0.0345,67381.0,67380.0,0.53329583]
[1718146449661,0.0345,67381.0,67380.0,0.53330975]
[1718146450572,0.05249534,67381.0,67380.0,0.53330975]
[1718146451669,0.05249534,67381.0,67380.0,0.41020679]
[1718146451875,0.05249534,67381.0,67380.0,0.5333112]
[1718146453747,0.05249534,67381.0,67380.0,0.53330382]
[1718146455218,0.05249534,67381.0,67380.0,0.53328816]
[1718146457851,0.05249534,67381.0,67380.0,0.52893496]
[1718146458060,0.05249534,67381.0,67380.0,0.52442093]
[1718146458895,0.01799534,67381.0,67380.0,0.5688167]
[1718146459138,0.022,67384.0,67380.0,0.5688167]
[1718146459405,0.022,67384.0,67381.0,0.19366373]
[1718146459624,0.022,67384.0,67382.0,0.17066579]
[1718146459831,0.022,67384.0,67383.0,0.33075991]
[1718146460046,0.022,67384.0,67383.0,0.5014257]
[1718146460445,0.022,67384.0,67383.0,0.52818379]
[1718146461230,0.022,67384.0,67383.0,0.52918379]
[1718146462039,0.022,67384.0,67383.0,0.53018379]
[1718146462636,0.022,67384.0,67383.0,0.53018455]
[1718146463043,0.022,67384.0,67383.0,0.53018464]
[1718146463249,0.022,67384.0,67383.0,0.40707987]
[1718146463453,0.022,67384.0,67383.0,0.53018465]
[1718146463857,0.022,67384.0,67383.0,0.53018883]
[1718146468391,0.022,67384.0,67383.0,0.40708405]
[1718146468605,0.022,67384.0,67383.0,0.53018941]
[1718146469426,0.022,67384.0,67383.0,0.57463739]
[1718146469625,0.022,67384.0,67383.0,0.53018941]
[1718146470001,0.022,67384.0,67383.0,0.57463739]
[1718146471235,0.022,67384.0,67383.0,0.57464625]
[1718146471554,0.02286,67384.0,67383.0,0.57464625]
[1718146471984,0.02286,67384.0,67383.0,0.57463694]
[1718146472378,0.02286,67384.0,67383.0,0.53017806]
[1718146472991,0.02286,67384.0,67383.0,0.22241475]
[1718146473221,0.02286,67384.0,67383.0,0.5301786]
[1718146473652,0.02286,67384.0,67383.0,0.53017636]
[1718146474266,0.02286,67384.0,67383.0,0.59689089]
[1718146474711,0.02286,67384.0,67383.0,0.59689096]
[1718146474940,0.02286,67384.0,67383.0,0.59690522]
[1718146475622,0.02286,67384.0,67383.0,0.53017516]
[1718146477299,0.02286,67384.0,67383.0,0.61914688]
[1718146477661,0.02286,67384.0,67383.0,0.53017516]
[1718146478723,0.00086,67384.0,67383.0,0.53017516]
[1718146478927,0.00086,67384.0,67383.0,0.53017386]
[1718146483120,0.00086,67384.0,67383.0,0.22241124]
[1718146483467,0.00086,67384.0,67383.0,0.61914626]
[1718146483669,0.00086,67384.0,67383.0,0.61915029]
[1718146484522,0.00086,67384.0,67383.0,0.48262701]
[1718146484754,0.00086,67384.0,67383.0,0.53017907]
[1718146485999,0.00086,67384.0,67383.0,0.53017736]
[1718146486214,0.00075004,67384.0,67383.0,0.53017736]
[1718146486435,0.00075004,67384.0,67383.0,0.6191876]
[1718146486653,0.00075004,67384.0,67383.0,0.61919619]
[1718146487287,0.00075004,67384.0,67383.0,0.6191952]
[1718146487719,0.00075004,67384.0,67383.0,0.49608834]
[1718146487927,0.00075004,67384.0,67383.0,0.61778323]
[1718146488973,0.00075004,67384.0,67383.0,0.68727299]
[1718146489210,0.00075004,67384.0,67383.0,0.76307299]
[1718146489893,0.00075004,67384.0,67383.0,0.45531068]
[1718146490117,0.00075004,67384.0,67383.0,0.76306976]
[1718146490757,0.00075004,67384.0,67383.0,0.76286405]
[1718146491002,0.00075004,67384.0,67383.0,0.76186405]
[1718146492289,0.00075004,67384.0,67383.0,0.87214801]
[1718146493748,0.00075004,67384.0,67383.0,0.87314801]
[1718146493954,0.00075004,67384.0,67383.0,0.87316358]
[1718146494368,0.00075004,67384.0,67383.0,0.71452065]
[1718146494570,0.00075004,67384.0,67383.0,0.87317147]
[1718146495819,0.00075004,67384.0,67383.0,0.87457388]
[1718146496010,0.00075004,67384.0,67383.0,0.87457272]
[1718146496236,0.00075004,67384.0,67383.0,0.76328253]
[1718146502694,0.00075004,67384.0,67383.0,0.71592926]
[1718146502911,0.00075004,67384.0,67383.0,0.76330698]
[1718146503750,0.00075004,67384.0,67383.0,0.76425298]
[1718146504434,0.00075004,67384.0,67383.0,0.4564939]
[1718146504647,0.00075004,67384.0,67383.0,0.7642554]
[1718146506660,0.00075004,67384.0,67383.0,0.59377418]
[1718146506874,0.00075004,67384.0,67383.0,0.59378085]
[1718146508295,0.00075004,67384.0,67383.0,0.59378117]
[1718146508501,0.00075004,67384.0,67383.0,0.64118353]
[1718146509285,0.00075004,67384.0,67383.0,0.68857059]
[1718146509664,0.00075004,67384.0,67383.0,0.64118353]
[1718146512481,0.00075004,67384.0,67383.0,0.59493672]
[1718146512701,0.00075004,67384.0,67383.0,0.61149709]
[1718146512928,0.03525004,67384.0,67383.0,0.37719709]
[1718146513101,0.03525004,67384.0,67383.0,0.32979473]
[1718146513303,0.03525004,67384.0,67383.0,0.02202624]
[1718146513793,0.03525004,67384.0,67383.0,0.001946]
[1718146514262,0.03525004,67384.0,67383.0,0.12505733]
[1718146514634,0.03525004,67384.0,67383.0,0.16815052]
[1718146515013,0.03525004,67384.0,67383.0,0.16715052]
[1718146516256,0.02275004,67384.0,67383.0,0.16715052]
[1718146516461,0.02475004,67384.0,67383.0,0.16715052]
[1718146516912,0.02275004,67384.0,67383.0,0.16715052]
[1718146517261,0.02475004,67384.0,67383.0,0.16815052]
[1718146518302,0.02475004,67384.0,67383.0,0.16815106]
[1718146519106,0.02475004,67384.0,67383.0,0.21265312]
[1718146519582,0.02275004,67384.0,67383.0,0.16715106]
[1718146519741,0.02275004,67384.0,67383.0,0.21265312]
[1718146520116,0.03075004,67384.0,67383.0,0.21365312]
[1718146521583,0.02275004,67384.0,67383.0,0.16715106]
[1718146522009,0.02975004,67384.0,67383.0,0.16815106]
[1718146522218,0.02275004,67384.0,67383.0,0.16715106]
[1718146522429,0.02275004,67384.0,67383.0,0.16815369]
[1718146522657,0.02975004,67384.0,67383.0,0.16815369]
[1718146523075,0.03775004,67384.0,67383.0,0.16915369]
[1718146523486,0.02975004,67384.0,67383.0,0.21264589]
[1718146523685,0.0293716,67384.0,67383.0,0.21264589]
[1718146523889,0.0383716,67384.0,67383.0,0.21364589]
[1718146524972,0.0383716,67384.0,67383.0,0.16915414]
[1718146525816,0.0383716,67384.0,67383.0,0.21364315]
[1718146526040,0.0383716,67384.0,67383.0,0.16915414]
[1718146528625,0.0383716,67384.0,67383.0,0.21364141]
[1718146528851,0.0383716,67384.0,67383.0,0.16915414]
[1718146530326,0.0383716,67384.0,67383.0,0.21364131]
[1718146531598,0.0383716,67384.0,67383.0,0.16915414]
[1718146531813,0.0383716,67384.0,67383.0,0.21363818]
[1718146532183,0.0373716,67384.0,67383.0,0.21363818]
[1718146532409,0.016,67384.0,67383.0,0.21363818]
[1718146532811,0.164403,67384.0,67383.0,0.21363818]
[1718146535011,0.164403,67384.0,67383.0,0.21363754]
[1718146535469,0.165263,67384.0,67383.0,0.21363754]
[1718146535685,0.165263,67384.0,67383.0,0.21363624]
[1718146537321,0.165263,67384.0,67383.0,0.21363595]
[1718146537539,0.165263,67384.0,67383.0,0.16915255]
[1718146539444,0.165263,67384.0,67383.0,0.21363901]
[1718146539968,0.165263,67384.0,67383.0,0.16915255]
[1718146542999,0.165263,67384.0,67383.0,0.23589023]
[1718146544592,0.165263,67384.0,67383.0,0.23055632]
[1718146544818,0.165263,67384.0,67383.0,0.18163017]
[1718146547013,0.165263,67384.0,67383.0,0.16381864]
[1718146547905,0.165263,67384.0,67383.0,0.23057209]
[1718146549509,0.165263,67384.0,67383.0,0.16381864]
[1718146550604,0.165263,67384.0,67383.0,0.23059352]
[1718146550811,0.165263,67384.0,67383.0,0.16381864]
[1718146551450,0.165263,67384.0,67383.0,0.23059423]
[1718146551897,0.165263,67384.0,67383.0,0.16381864]
[1718146552751,0.165263,67384.0,67383.0,0.23059475]
[1718146553190,0.165263,67384.0,67383.0,0.16381864]
[1718146554917,0.165263,67384.0,67383.0,0.25280222]
[1718146555885,0.165263,67384.0,67383.0,0.16381864]
[1718146556088,0.165263,67384.0,67383.0,0.47159615]
[1718146556714,0.165263,67384.0,67383.0,0.48940705]
[1718146556888,0.165263,67384.0,67383.0,0.47159615]
[1718146557090,0.165263,67384.0,67383.0,0.27065978]
[1718146557527,0.165263,67384.0,67383.0,0.25284877]
[1718146558114,0.165263,67384.0,67383.0,0.27065978]
[1718146558543,0.165263,67384.0,67383.0,0.27065601]
[1718146558746,0.165263,67384.0,67383.0,0.57843155]
[1718146558945,0.165263,67384.0,67383.0,0.48940142]
[1718146559070,0.165263,67384.0,67383.0,0.48940091]
[1718146559482,0.165263,67384.0,67383.0,0.47158998]
[1718146559679,0.165263,67384.0,67383.0,0.58281946]
[1718146559886,0.165263,67384.0,67383.0,0.47158998]
[1718146560733,0.01686,67384.0,67383.0,0.47158998]
[1718146560933,0.01686,67384.0,67383.0,0.55288998]
[1718146562935,0.01686,67384.0,67383.0,0.5707007]
[1718146563139,0.01686,67384.0,67383.0,0.55288998]
[1718146563473,0.01686,67384.0,67383.0,0.57070076]
[1718146564394,0.01686,67384.0,67383.0,0.71338998]
[1718146567240,0.01686,67384.0,67383.0,0.59028082]
[1718146567447,0.01686,67384.0,67383.0,0.73119807]
[1718146567873,0.01686,67384.0,67383.0,0.71338734]
[1718146571169,0.01686,67384.0,67383.0,0.71338816]
[1718146573717,0.01686,67384.0,67383.0,0.82020654]
[1718146573924,0.01686,67384.0,67383.0,0.82020724]
[1718146574130,0.01686,67384.0,67383.0,0.8202019]
[1718146574363,0.01686,67384.0,67383.0,0.8202013]
[1718146574697,0.01686,67384.0,67383.0,0.71338362]
[1718146575539,0.01686,67384.0,67383.0,0.80238906]
[1718146575753,0.01686,67384.0,67383.0,0.82019975]
[1718146576178,0.01686,67384.0,67383.0,0.8202005]
[1718146576398,0.01686,67384.0,67383.0,0.82020064]
[1718146577274,0.01686,67384.0,67383.0,0.3465303]
[1718146577490,0.01686,67384.0,67383.0,0.23971342]
[1718146577707,0.01686,67384.0,67383.0,0.25752411]
[1718146577920,0.01686,67384.0,67383.0,0.23971342]
[1718146578131,0.01686,67384.0,67383.0,0.25752411]
[1718146579425,0.01686,67384.0,67383.0,0.18162411]
[1718146580082,0.01686,67384.0,67383.0,0.16381342]
[1718146580461,0.01686,67384.0,67383.0,0.2706303]
[1718146581031,0.05571779,67384.0,67383.0,0.2706303]
[1718146581901,0.05571779,67384.0,67383.0,0.18162411]
[1718146582480,0.05571779,67384.0,67383.0,0.16381342]
[1718146582897,0.05571779,67384.0,67383.0,0.18162411]
[1718146583295,0.05571779,67384.0,67383.0,0.2706303]
[1718146583751,0.01686,67384.0,67383.0,0.18162411]
[1718146584119,0.01686,67384.0,67383.0,0.2706303]
[1718146585519,0.01686,67384.0,67383.0,0.18162411]
[1718146585808,0.01686,67384.0,67383.0,0.2706303]
[1718146586242,0.01686,67384.0,67383.0,0.18162411]
[1718146586883,0.01686,67384.0,67383.0,0.2706303]
[1718146587092,0.01686,67384.0,67383.0,0.18162411]
[1718146587319,0.01686,67384.0,67383.0,0.16381342]
[1718146587538,0.01686,67384.0,67383.0,0.18162411]
[1718146587981,0.01686,67384.0,67383.0,0.16381342]
[1718146588215,0.01686,67384.0,67383.0,0.04070528]
[1718146588477,0.01686,67384.0,67383.0,0.1638176]
[1718146589541,0.01686,67384.0,67383.0,0.16381709]
[1718146589984,0.01686,67384.0,67383.0,0.27064751]
[1718146590630,0.01686,67384.0,67383.0,0.27064622]
[1718146591079,0.01686,67384.0,67383.0,0.16381596]
[1718146591311,0.01686,67384.0,67383.0,0.27064622]
[1718146593048,0.01686,67384.0,67383.0,0.16381596]
[1718146593261,0.01686,67384.0,67383.0,0.27064622]
[1718146593467,0.01686,67384.0,67383.0,0.16381596]
[1718146593884,0.01686,67384.0,67383.0,0.23058049]
[1718146594115,0.01686,67384.0,67383.0,0.16381596]
[1718146595185,0.03567915,67384.0,67383.0,0.16381596]
[1718146595400,0.01686,67384.0,67383.0,0.16381596]
[1718146596539,0.01686,67384.0,67383.0,0.27064622]
[1718146597438,0.01686,67384.0,67383.0,0.16381596]
[1718146599020,0.01686,67384.0,67383.0,0.27064622]
[1718146600193,0.01686,67384.0,67383.0,0.16381596]
[1718146600902,0.45424082,67384.0,67383.0,0.20758606]
[1718146601183,0.43538293,67384.0,67383.0,0.18533082]
[1718146601702,0.43538293,67384.0,67383.0,0.14081596]
[1718146601980,0.43538293,67384.0,67383.0,0.01770528]
[1718146602784,0.43538293,67384.0,67383.0,0.01570528]
[1718146602785,0.41938293,67384.0,67383.0,0.01570528]
[1718146602787,0.41938293,67384.0,67383.0,0.000946]
[1718146603047,0.40838293,67384.0,67383.0,0.001946]
[1718146604675,0.49697332,67384.0,67383.0,0.001946]
[1718146605356,0.44238293,67384.0,67383.0,0.001946]
[1718146608413,0.35038293,67384.0,67383.0,0.001946]
[1718146608617,0.42238293,67384.0,67383.0,0.001946]
[1718146610232,0.35038293,67384.0,67383.0,0.001946]
[1718146610440,0.42238293,67384.0,67383.0,0.001946]
[1718146613759,0.44238293,67384.0,67383.0,0.001946]
[1718146614219,0.42238293,67384.0,67383.0,0.001946]
[1718146614651,0.42238293,67384.0,67383.0,0.01303598]
[1718146614855,0.42238293,67384.0,67383.0,0.001946]
[1718146615028,0.42238293,67384.0,67383.0,0.01303598]
[1718146615173,0.42238293,67384.0,67383.0,0.001946]
[1718146615375,0.42238293,67384.0,67383.0,0.01303598]
[1718146615594,0.42238293,67384.0,67383.0,0.001946]
[1718146615794,0.42238293,67384.0,67383.0,0.01303598]
[1718146616001,0.42238293,67384.0,67383.0,0.001946]
[1718146616249,0.42238293,67384.0,67383.0,0.01303598]
[1718146616474,0.42238293,67384.0,67383.0,0.001946]
[1718146616883,0.42238293,67384.0,67383.0,0.01304497]